{"text_format":"3","workbook":"xlsx","n_sheets":1,"sheets":["Verenpaine ja verensokeri"],"not_rendered":{"defined_names":9},"read":"whole","date_system":"1900"}

{"sheet":"Verenpaine ja verensokeri","index":0,"n_rows":13,"n_cols":11,"rows_kept":13,"merged":[[0,1,4,3],[0,4,0,9],[1,4,1,6],[1,7,1,9],[3,7,4,7],[3,8,4,8],[3,9,4,9]]}
[null,"Verenpaineen\nja verensokerin seuranta",null,null,"Voit mukauttaa asteikon arvoja soluissa E2–J5 alla."]
[{"$nulls":4},"VERENPAINE",null,null,"VERENSOKERIASTEIKKO"]
[{"$nulls":4},120,"SYSTOLINEN",140,70,100,150]
[{"$nulls":4},80,"DIASTOLINEN",90,"MATALA","NORMAALI","KORKEA"]
[{"$nulls":4},"TAVOITEPAINE",null,"SOITA LÄÄKÄRILLE"]
[null,"Päivämäärä","Aika","Tapahtuma","Systolinen","Diastolinen","Syke","Verensokeri","Taso","Tila","Muistiinpanot"]
[null,{"$f":"TODAY()","v":"2018-06-28"},"06:00:00","Aamulla",129,79,72,55,{"$f":"Verenpaine_ja_verensokeri[[#This Row],[Verensokeri]]","v":55},{"$f":"IFERROR(IF(Verenpaine_ja_verensokeri[[#This Row],[Taso]]=0,\"\",IF(Verenpaine_ja_verensokeri[[#This Row],[Taso]]<=Sokeri_matala,\"MATALA\",IF(AND(Verenpaine_ja_verensokeri[[#This Row],[Taso]]>Sokeri_matala,Verenpaine_ja_verensokeri[[#This Row],[Taso]]<Sokeri_korkea),\"NORMAALI\",\"KORKEA\"))), \"\")","v":"MATALA"}]
[null,{"$f":"TODAY()","v":"2018-06-28"},"07:00:00","Ennen ateriaa",120,80,74,70,{"$f":"Verenpaine_ja_verensokeri[[#This Row],[Verensokeri]]","v":70},{"$f":"IFERROR(IF(Verenpaine_ja_verensokeri[[#This Row],[Taso]]=0,\"\",IF(Verenpaine_ja_verensokeri[[#This Row],[Taso]]<=Sokeri_matala,\"MATALA\",IF(AND(Verenpaine_ja_verensokeri[[#This Row],[Taso]]>Sokeri_matala,Verenpaine_ja_verensokeri[[#This Row],[Taso]]<Sokeri_korkea),\"NORMAALI\",\"KORKEA\"))), \"\")","v":"MATALA"}]
[null,"2018-06-28","09:00:00","Aterian jälkeen",133,80,75,75,{"$f":"Verenpaine_ja_verensokeri[[#This Row],[Verensokeri]]","v":75},{"$f":"IFERROR(IF(Verenpaine_ja_verensokeri[[#This Row],[Taso]]=0,\"\",IF(Verenpaine_ja_verensokeri[[#This Row],[Taso]]<=Sokeri_matala,\"MATALA\",IF(AND(Verenpaine_ja_verensokeri[[#This Row],[Taso]]>Sokeri_matala,Verenpaine_ja_verensokeri[[#This Row],[Taso]]<Sokeri_korkea),\"NORMAALI\",\"KORKEA\"))), \"\")","v":"NORMAALI"}]
[null,"2018-06-28","10:00:00","Vain verenpaine",143,91,75,190,{"$f":"Verenpaine_ja_verensokeri[[#This Row],[Verensokeri]]","v":190},{"$f":"IFERROR(IF(Verenpaine_ja_verensokeri[[#This Row],[Taso]]=0,\"\",IF(Verenpaine_ja_verensokeri[[#This Row],[Taso]]<=Sokeri_matala,\"MATALA\",IF(AND(Verenpaine_ja_verensokeri[[#This Row],[Taso]]>Sokeri_matala,Verenpaine_ja_verensokeri[[#This Row],[Taso]]<Sokeri_korkea),\"NORMAALI\",\"KORKEA\"))), \"\")","v":"KORKEA"}]
[null,"2018-06-28","12:00:00","Ennen ateriaa",141,84,70,140,{"$f":"Verenpaine_ja_verensokeri[[#This Row],[Verensokeri]]","v":140},{"$f":"IFERROR(IF(Verenpaine_ja_verensokeri[[#This Row],[Taso]]=0,\"\",IF(Verenpaine_ja_verensokeri[[#This Row],[Taso]]<=Sokeri_matala,\"MATALA\",IF(AND(Verenpaine_ja_verensokeri[[#This Row],[Taso]]>Sokeri_matala,Verenpaine_ja_verensokeri[[#This Row],[Taso]]<Sokeri_korkea),\"NORMAALI\",\"KORKEA\"))), \"\")","v":"NORMAALI"}]
[null,{"$f":"TODAY()","v":"2018-06-28"},"15:00:00","Aterian jälkeen",132,80,68,90,{"$f":"Verenpaine_ja_verensokeri[[#This Row],[Verensokeri]]","v":90},{"$f":"IFERROR(IF(Verenpaine_ja_verensokeri[[#This Row],[Taso]]=0,\"\",IF(Verenpaine_ja_verensokeri[[#This Row],[Taso]]<=Sokeri_matala,\"MATALA\",IF(AND(Verenpaine_ja_verensokeri[[#This Row],[Taso]]>Sokeri_matala,Verenpaine_ja_verensokeri[[#This Row],[Taso]]<Sokeri_korkea),\"NORMAALI\",\"KORKEA\"))), \"\")","v":"NORMAALI"},"Verenpainelääke otettu aterian yhteydessä"]
[null,"Keskiarvot",null,null,{"$f":"SUBTOTAL(101,Verenpaine_ja_verensokeri[Systolinen])","v":133},{"$f":"SUBTOTAL(101,Verenpaine_ja_verensokeri[Diastolinen])","v":{"v":82.33333333333333,"d":"82"}},{"$f":"SUBTOTAL(101,Verenpaine_ja_verensokeri[Syke])","v":{"v":72.33333333333333,"d":"72"}},{"$f":"SUBTOTAL(101,Verenpaine_ja_verensokeri[Verensokeri])","v":{"v":103.33333333333333,"d":"103"}}]